[Event "Sabato rapido!"]
[Site "Chess.com"]
[Date "2020.05.02"]
[Round "5"]
[White "donaldnecesito"]
[Black "caramante"]
[Result "1-0"]
[WhiteElo "1644"]
[BlackElo "1502"]
[TimeControl "720+3"]
[EndTime "8:05:53 PDT"]
[Termination "donaldnecesito ha vinto per abbandono"]

1. e4 {[%clk 0:12:02.9]} 1... c5 {[%clk 0:12:00.7]} 2. Nf3 {[%clk 0:12:05]} 2...
d6 {[%clk 0:12:01.3]} 3. d4 {[%clk 0:12:07.4]} 3... cxd4 {[%clk 0:12:02]} 4.
Nxd4 {[%clk 0:12:08.7]} 4... Nf6 {[%clk 0:12:03.9]} 5. Nc3 {[%clk 0:12:10.7]}
5... a6 {[%clk 0:12:05.9]} 6. Bg5 {[%clk 0:12:12.5]} 6... e6 {[%clk 0:12:06.5]}
7. f4 {[%clk 0:12:14]} 7... Be7 {[%clk 0:12:08.5]} 8. Qf3 {[%clk 0:12:15.8]}
8... Qc7 {[%clk 0:12:10.4]} 9. Bd3 {[%clk 0:12:13.7]} 9... O-O {[%clk
0:12:08.7]} 10. g4 {[%clk 0:12:15.5]} 10... Nc6 {[%clk 0:12:08.7]} 11. Nxc6
{[%clk 0:12:12.9]} 11... bxc6 {[%clk 0:12:09.2]} 12. Bxf6 {[%clk 0:12:13.8]}
12... Bxf6 {[%clk 0:12:09.9]} 13. g5 {[%clk 0:12:16.4]} 13... Bxc3+ {[%clk
0:12:06.2]} 14. bxc3 {[%clk 0:12:18.2]} 14... e5 {[%clk 0:11:58.3]} 15. f5
{[%clk 0:12:17.6]} 15... Kh8 {[%clk 0:11:53]} 16. O-O {[%clk 0:11:44.6]} 16...
Bd7 {[%clk 0:11:47.1]} 17. Kh1 {[%clk 0:11:45.9]} 17... Rae8 {[%clk 0:11:28.3]}
18. Rf2 {[%clk 0:11:43.9]} 18... d5 {[%clk 0:11:26.4]} 19. Raf1 {[%clk
0:11:32.9]} 19... f6 {[%clk 0:10:57.7]} 20. h4 {[%clk 0:11:32.2]} 20... Qd6
{[%clk 0:10:49]} 21. Rg1 {[%clk 0:11:09.6]} 21... a5 {[%clk 0:10:33.3]} 22. Qh5
{[%clk 0:11:03.1]} 22... Re7 {[%clk 0:10:26.5]} 23. Rfg2 {[%clk 0:10:48.3]}
23... Be8 {[%clk 0:10:24.3]} 24. Qg4 {[%clk 0:10:33.5]} 24... c5 {[%clk
0:09:57.7]} 25. gxf6 {[%clk 0:10:19.1]} 25... Rxf6 {[%clk 0:09:57.7]} 26. exd5
{[%clk 0:10:12.7]} 26... Rh6 {[%clk 0:09:28.3]} 27. Be4 {[%clk 0:09:42.5]} 27...
Qf6 {[%clk 0:09:27.6]} 28. Rh2 {[%clk 0:09:40.4]} 28... Bh5 {[%clk 0:07:48.8]}
29. Qg5 {[%clk 0:09:35.1]} 29... Be8 {[%clk 0:07:36.4]} 30. Rg4 {[%clk
0:07:53.9]} 30... Rh5 {[%clk 0:07:29.4]} 31. Qxf6 {[%clk 0:07:48.7]} 31... gxf6
{[%clk 0:07:26.9]} 32. Rhg2 {[%clk 0:07:50.1]} 32... Bf7 {[%clk 0:07:19.8]} 33.
Kh2 {[%clk 0:07:38.9]} 33... Rd7 {[%clk 0:06:41.3]} 34. Kh3 {[%clk 0:07:32.8]}
34... Rh6 {[%clk 0:06:20.7]} 35. c4 {[%clk 0:07:20.9]} 35... Rd8 {[%clk
0:06:12.8]} 36. Rg7 {[%clk 0:07:15.7]} 36... Bh5 {[%clk 0:06:07.7]} 37. d6
{[%clk 0:07:09.4]} 37... Bg6 {[%clk 0:05:35.1]} 38. Rc7 {[%clk 0:06:23.7]} 38...
Rxd6 {[%clk 0:05:00.9]} 39. fxg6 {[%clk 0:06:06.4]} 39... hxg6 {[%clk
0:04:59.4]} 40. Bxg6 {[%clk 0:05:47.2]} 40... Rd8 {[%clk 0:04:34.9]} 41. h5
{[%clk 0:05:43]} 41... Rf8 {[%clk 0:04:11.6]} 42. Rf7 {[%clk 0:05:35.9]} 42...
Kg8 {[%clk 0:04:01]} 43. Rxf8+ {[%clk 0:05:26.3]} 43... Kxf8 {[%clk 0:04:01.6]}
44. Kg4 {[%clk 0:05:28.8]} 44... Ke7 {[%clk 0:04:02.1]} 45. Kf5 {[%clk
0:05:30.9]} 45... a4 {[%clk 0:04:02.4]} 46. Rd2 {[%clk 0:05:26.1]} 46... Rh8
{[%clk 0:03:57.1]} 47. Rd5 {[%clk 0:05:27.1]} 47... Rd8 {[%clk 0:03:52.8]} 48.
Rxd8 {[%clk 0:05:27.2]} 48... Kxd8 {[%clk 0:03:52.9]} 49. Kxf6 {[%clk
0:05:29.6]} 1-0

[Event "Sabato rapido!"]
[Site "Chess.com"]
[Date "2020.05.02"]
[Round "5"]
[White "fisherpez"]
[Black "Ollarov"]
[Result "0-1"]
[WhiteElo "1630"]
[BlackElo "2017"]
[TimeControl "720+3"]
[EndTime "8:06:15 PDT"]
[Termination "Ollarov ha vinto per scaccomatto"]

1. e3 {[%clk 0:12:02.9]} 1... Nf6 {[%clk 0:11:59.1]} 2. b3 {[%clk 0:12:04.3]}
2... g6 {[%clk 0:12:00.8]} 3. Bb2 {[%clk 0:12:06.2]} 3... Bg7 {[%clk 0:12:03.3]}
4. Nc3 {[%clk 0:12:08]} 4... d6 {[%clk 0:12:05.4]} 5. Be2 {[%clk 0:12:10]} 5...
O-O {[%clk 0:12:07.4]} 6. h4 {[%clk 0:12:11.8]} 6... h5 {[%clk 0:12:06.9]} 7.
Nf3 {[%clk 0:12:13]} 7... Bg4 {[%clk 0:12:07.4]} 8. Nh2 {[%clk 0:12:15.1]} 8...
Bxe2 {[%clk 0:12:08.7]} 9. Qxe2 {[%clk 0:12:17.4]} 9... Nc6 {[%clk 0:12:09.6]}
10. O-O-O {[%clk 0:12:17.8]} 10... a5 {[%clk 0:12:10.5]} 11. g4 {[%clk
0:12:19.8]} 11... hxg4 {[%clk 0:12:10.1]} 12. Nxg4 {[%clk 0:12:21.8]} 12... Nh5
{[%clk 0:12:08.8]} 13. Rdg1 {[%clk 0:12:16.2]} 13... Qd7 {[%clk 0:12:01.1]} 14.
Nb1 {[%clk 0:12:03.5]} 14... Qf5 {[%clk 0:10:20]} 15. e4 {[%clk 0:10:42]} 15...
Qc5 {[%clk 0:09:04.1]} 16. Ba3 {[%clk 0:10:03.3]} 16... Nb4 {[%clk 0:08:13.7]}
17. Qc4 {[%clk 0:08:15.1]} 17... Nxa2+ {[%clk 0:07:39]} 18. Kd1 {[%clk
0:08:16.7]} 18... Qxc4 {[%clk 0:07:00.7]} 19. bxc4 {[%clk 0:08:16.9]} 19... Rfb8
{[%clk 0:06:39.7]} 20. c3 {[%clk 0:08:11.4]} 20... b5 {[%clk 0:06:31.5]} 21.
cxb5 {[%clk 0:08:03.6]} 21... Rxb5 {[%clk 0:06:29.2]} 22. Kc2 {[%clk 0:08:06.1]}
22... Nf4 {[%clk 0:06:01.4]} 23. Ne3 {[%clk 0:07:45.7]} 23... Nb4+ {[%clk
0:04:49.1]} 24. Kd1 {[%clk 0:07:04.7]} 24... Nbd3 {[%clk 0:04:45.2]} 25. Kc2
{[%clk 0:06:53.9]} 25... Rab8 {[%clk 0:04:27.2]} 26. Nc4 {[%clk 0:06:02.2]}
26... Nxf2 {[%clk 0:04:19.2]} 27. Rh2 {[%clk 0:05:49.4]} 27... Nxe4 {[%clk
0:04:17.7]} 28. Rg4 {[%clk 0:05:43.9]} 28... e5 {[%clk 0:03:49.9]} 29. Rxf4
{[%clk 0:05:31.7]} 29... exf4 {[%clk 0:03:50.3]} 30. Rh1 {[%clk 0:05:34]} 30...
f3 {[%clk 0:03:48.2]} 31. Rf1 {[%clk 0:05:16.6]} 31... f2 {[%clk 0:03:49.3]} 32.
d3 {[%clk 0:04:28.7]} 32... Rxb1 {[%clk 0:03:30.8]} 33. Rxb1 {[%clk 0:04:27.4]}
33... Rxb1 {[%clk 0:03:30]} 34. dxe4 {[%clk 0:04:29.2]} 34... f1=Q {[%clk
0:03:27.5]} 35. Nd2 {[%clk 0:04:28.9]} 35... Qd1+ {[%clk 0:03:27.6]} 36. Kd3
{[%clk 0:04:29.6]} 36... Rb3 {[%clk 0:03:20.5]} 37. Bc1 {[%clk 0:04:13.3]} 37...
Rxc3# {[%clk 0:03:20.8]} 0-1

[Event "Sabato rapido!"]
[Site "Chess.com"]
[Date "2020.05.02"]
[Round "5"]
[White "moha1812med"]
[Black "fausto2p"]
[Result "1-0"]
[WhiteElo "1039"]
[BlackElo "991"]
[TimeControl "720+3"]
[EndTime "8:08:40 PDT"]
[Termination "moha1812med ha vinto per abbandono"]

1. d4 {[%clk 0:12:02.9]} 1... d5 {[%clk 0:12:01.4]} 2. c4 {[%clk 0:12:00.5]}
2... c6 {[%clk 0:12:01.4]} 3. Nf3 {[%clk 0:11:43.7]} 3... Nf6 {[%clk 0:11:59.6]}
4. e3 {[%clk 0:11:43.5]} 4... e6 {[%clk 0:11:31.9]} 5. Bd3 {[%clk 0:11:02.8]}
5... dxc4 {[%clk 0:11:28.9]} 6. Bxc4 {[%clk 0:11:01.7]} 6... b5 {[%clk
0:11:28.2]} 7. Bd3 {[%clk 0:11:01.5]} 7... Bb4+ {[%clk 0:11:12.7]} 8. Bd2 {[%clk
0:11:00.9]} 8... Bxd2+ {[%clk 0:11:09.4]} 9. Nbxd2 {[%clk 0:10:21.4]} 9... Nbd7
{[%clk 0:10:50.8]} 10. O-O {[%clk 0:09:50.1]} 10... O-O {[%clk 0:10:50.2]} 11.
e4 {[%clk 0:08:46.8]} 11... c5 {[%clk 0:10:27.8]} 12. e5 {[%clk 0:08:45.1]}
12... Nd5 {[%clk 0:10:15.6]} 13. Be4 {[%clk 0:07:50.8]} 13... Bb7 {[%clk
0:08:49.2]} 14. Qc2 {[%clk 0:07:30.6]} 14... c4 {[%clk 0:07:38.3]} 15. Bxh7+
{[%clk 0:06:51.3]} 15... Kh8 {[%clk 0:07:37.4]} 16. Be4 {[%clk 0:06:52.7]} 16...
a6 {[%clk 0:07:14.6]} 17. Rad1 {[%clk 0:06:27.1]} 17... Rc8 {[%clk 0:07:11.3]}
18. Bxd5 {[%clk 0:06:08.5]} 18... Bxd5 {[%clk 0:07:06.6]} 19. Qc3 {[%clk
0:05:56.6]} 19... Qe7 {[%clk 0:06:51.7]} 20. Ne1 {[%clk 0:05:47.6]} 20... b4
{[%clk 0:06:42.8]} 21. Qh3+ {[%clk 0:05:46.2]} 21... Kg8 {[%clk 0:06:37.9]} 22.
b3 {[%clk 0:04:55.7]} 22... c3 {[%clk 0:05:43.7]} 23. Ndf3 {[%clk 0:04:35]}
23... c2 {[%clk 0:05:23.5]} 24. Rc1 {[%clk 0:04:35.3]} 24... Be4 {[%clk
0:05:13.8]} 25. Qh5 {[%clk 0:04:24.7]} 25... f6 {[%clk 0:04:45]} 26. Qh4 {[%clk
0:04:08.8]} 26... Bxf3 {[%clk 0:03:57.6]} 27. gxf3 {[%clk 0:04:05.3]} 27... Rc3
{[%clk 0:03:40.6]} 28. Rxc2 {[%clk 0:04:00.8]} 28... Rxf3 {[%clk 0:03:15.1]} 29.
Nxf3 {[%clk 0:03:59.4]} 29... Qf7 {[%clk 0:02:57.7]} 30. Rfc1 {[%clk 0:03:53.1]}
30... fxe5 {[%clk 0:02:55.3]} 31. Ng5 {[%clk 0:03:27.2]} 31... Qg6 {[%clk
0:02:43.9]} 32. Rc8 {[%clk 0:03:19.6]} 32... Nf6 {[%clk 0:02:17.4]} 33. Qh8+
{[%clk 0:02:58.2]} 1-0

[Event "Sabato rapido!"]
[Site "Chess.com"]
[Date "2020.05.02"]
[Round "5"]
[White "bellapero"]
[Black "sergiodone"]
[Result "0-1"]
[WhiteElo "1291"]
[BlackElo "1488"]
[TimeControl "720+3"]
[EndTime "8:11:24 PDT"]
[Termination "sergiodone ha vinto per abbandono"]

1. e4 {[%clk 0:11:59.5]} 1... c5 {[%clk 0:11:58.8]} 2. d4 {[%clk 0:11:45.8]}
2... cxd4 {[%clk 0:11:59.6]} 3. Nf3 {[%clk 0:11:46.8]} 3... a6 {[%clk
0:11:48.3]} 4. Nxd4 {[%clk 0:11:35.4]} 4... d6 {[%clk 0:11:46.5]} 5. Nc3 {[%clk
0:11:34.7]} 5... e6 {[%clk 0:11:45]} 6. Bd3 {[%clk 0:11:21.6]} 6... Be7 {[%clk
0:11:43.6]} 7. O-O {[%clk 0:11:18]} 7... Nf6 {[%clk 0:11:45]} 8. Re1 {[%clk
0:10:16.8]} 8... Qc7 {[%clk 0:11:46]} 9. Nf3 {[%clk 0:09:33.2]} 9... Nc6 {[%clk
0:11:44.2]} 10. Be3 {[%clk 0:09:17.1]} 10... b5 {[%clk 0:11:44.6]} 11. Bf4
{[%clk 0:08:32]} 11... Bb7 {[%clk 0:11:43.8]} 12. e5 {[%clk 0:08:19.3]} 12...
dxe5 {[%clk 0:11:43.7]} 13. Bxe5 {[%clk 0:08:10.2]} 13... Nxe5 {[%clk
0:11:43.2]} 14. Nxe5 {[%clk 0:08:07]} 14... h5 {[%clk 0:11:32.3]} 15. Qd2 {[%clk
0:07:07.6]} 15... Ng4 {[%clk 0:11:30.5]} 16. Nf3 {[%clk 0:06:33.6]} 16... Bd6
{[%clk 0:11:10.4]} 17. h3 {[%clk 0:06:12.1]} 17... Bxf3 {[%clk 0:10:57.3]} 18.
gxf3 {[%clk 0:05:31.2]} 18... Nh2 {[%clk 0:10:49.3]} 19. Qe3 {[%clk 0:04:50.5]}
19... Bf4 {[%clk 0:10:48]} 20. Qe4 {[%clk 0:04:47]} 20... Rd8 {[%clk 0:10:34.5]}
21. Rad1 {[%clk 0:04:11.8]} 21... Kf8 {[%clk 0:09:51.4]} 22. Qb4+ {[%clk
0:03:32.8]} 22... Bd6 {[%clk 0:09:16.8]} 23. Qe4 {[%clk 0:03:23.3]} 23... Bf4
{[%clk 0:09:05.4]} 24. Qb4+ {[%clk 0:03:14.6]} 24... Kg8 {[%clk 0:08:38.5]} 25.
Re4 {[%clk 0:03:08.9]} 25... Nxf3+ {[%clk 0:08:38.3]} 26. Kg2 {[%clk 0:02:53.1]}
26... Ng5 {[%clk 0:08:39.5]} 27. Rxf4 {[%clk 0:02:31]} 27... Rh6 {[%clk
0:06:13.3]} 28. h4 {[%clk 0:02:06.4]} 28... Nh7 {[%clk 0:05:51.8]} 29. Qe4
{[%clk 0:01:50.2]} 29... Nf6 {[%clk 0:05:43.6]} 30. Qb4 {[%clk 0:01:28.8]} 30...
e5 {[%clk 0:05:20.1]} 31. Rf3 {[%clk 0:01:06.1]} 31... Rd4 {[%clk 0:05:20.1]}
32. Qa3 {[%clk 0:00:50.8]} 32... Rxh4 {[%clk 0:05:19.5]} 33. Qxa6 {[%clk
0:00:47]} 33... Rg4+ {[%clk 0:04:52.6]} 34. Rg3 {[%clk 0:00:45.2]} 34... Rxg3+
{[%clk 0:04:53.4]} 35. fxg3 {[%clk 0:00:45.2]} 35... e4 {[%clk 0:04:04.1]} 36.
Nxe4 {[%clk 0:00:38.3]} 36... Nxe4 {[%clk 0:04:04.4]} 37. Bxe4 {[%clk
0:00:38.6]} 37... Rxa6 {[%clk 0:04:05.4]} 38. Bd3 {[%clk 0:00:36.2]} 38... Rd6
{[%clk 0:04:03.6]} 39. b3 {[%clk 0:00:34.2]} 39... g6 {[%clk 0:04:02.5]} 40. Kh3
{[%clk 0:00:33.8]} 40... Kg7 {[%clk 0:04:03.2]} 41. Rf1 {[%clk 0:00:29.8]} 41...
Rf6 {[%clk 0:04:03.2]} 42. Rxf6 {[%clk 0:00:18.4]} 42... Kxf6 {[%clk 0:04:04.1]}
43. Bxb5 {[%clk 0:00:19.7]} 43... Qxc2 {[%clk 0:04:00.3]} 44. Ba4 {[%clk
0:00:20]} 44... Qd2 {[%clk 0:03:51.8]} 45. Kh4 {[%clk 0:00:20.3]} 45... Qg5+
{[%clk 0:03:48.4]} 46. Kh3 {[%clk 0:00:21]} 46... Qe3 {[%clk 0:03:46.1]} 47. Kh4
{[%clk 0:00:22.4]} 47... Qe4+ {[%clk 0:03:38.7]} 48. Kh3 {[%clk 0:00:24]} 48...
g5 {[%clk 0:03:40.4]} 49. Kh2 {[%clk 0:00:22.6]} 49... g4 {[%clk 0:03:39.7]} 50.
Kg1 {[%clk 0:00:21.7]} 50... Qf3 {[%clk 0:03:37.9]} 51. Kh2 {[%clk 0:00:23.3]}
51... Qf2+ {[%clk 0:03:38.4]} 0-1

[Event "Sabato rapido!"]
[Site "Chess.com"]
[Date "2020.05.02"]
[Round "6"]
[White "sergiodone"]
[Black "moha1812med"]
[Result "1-0"]
[WhiteElo "1489"]
[BlackElo "1032"]
[TimeControl "720+3"]
[EndTime "8:16:09 PDT"]
[Termination "sergiodone ha vinto per abbandono"]

1. e4 {[%clk 0:11:52.6]} 1... e5 {[%clk 0:12:00.8]} 2. d4 {[%clk 0:11:51.6]}
2... Bd6 {[%clk 0:11:32.7]} 3. Bc4 {[%clk 0:11:49.6]} 3... Nf6 {[%clk
0:11:31.2]} 4. Bg5 {[%clk 0:11:45.7]} 4... h6 {[%clk 0:11:32.5]} 5. Bh4 {[%clk
0:11:43.1]} 5... O-O {[%clk 0:11:32.9]} 6. Nf3 {[%clk 0:11:43.3]} 6... a6 {[%clk
0:11:30.4]} 7. dxe5 {[%clk 0:11:42]} 7... Bb4+ {[%clk 0:10:59.7]} 8. c3 {[%clk
0:11:41.8]} 8... Be7 {[%clk 0:10:50.8]} 9. exf6 {[%clk 0:11:41]} 9... Bxf6
{[%clk 0:10:52.1]} 10. Bxf6 {[%clk 0:11:42.2]} 10... Qxf6 {[%clk 0:10:53.8]} 11.
O-O {[%clk 0:11:43.8]} 11... b5 {[%clk 0:10:48.2]} 12. Bd3 {[%clk 0:11:40.1]}
12... Bb7 {[%clk 0:10:45.3]} 13. Qe2 {[%clk 0:11:41.4]} 13... b4 {[%clk
0:10:46.5]} 14. Nbd2 {[%clk 0:11:34.7]} 14... bxc3 {[%clk 0:10:44.8]} 15. bxc3
{[%clk 0:11:35.7]} 15... Qxc3 {[%clk 0:10:45.8]} 16. Rac1 {[%clk 0:11:34.8]}
16... Qa5 {[%clk 0:10:45.4]} 17. Nc4 {[%clk 0:11:24.3]} 17... Qxa2 {[%clk
0:10:28]} 18. Qxa2 {[%clk 0:11:23.4]} 1-0

[Event "Sabato rapido!"]
[Site "Chess.com"]
[Date "2020.05.02"]
[Round "6"]
[White "Ollarov"]
[Black "donaldnecesito"]
[Result "1-0"]
[WhiteElo "2025"]
[BlackElo "1639"]
[TimeControl "720+3"]
[EndTime "8:20:26 PDT"]
[Termination "Ollarov ha vinto per abbandono"]

1. e4 {[%clk 0:11:56.7]} 1... Nf6 {[%clk 0:11:54.6]} 2. Nc3 {[%clk 0:11:52.9]}
2... d6 {[%clk 0:11:54.3]} 3. d4 {[%clk 0:11:53.2]} 3... g6 {[%clk 0:11:55.7]}
4. f4 {[%clk 0:11:55.2]} 4... Bg7 {[%clk 0:11:57.7]} 5. Nf3 {[%clk 0:11:57.4]}
5... O-O {[%clk 0:11:59.2]} 6. e5 {[%clk 0:11:59.5]} 6... dxe5 {[%clk
0:12:01.3]} 7. fxe5 {[%clk 0:12:01]} 7... Nd5 {[%clk 0:11:55.2]} 8. Bc4 {[%clk
0:11:48.7]} 8... c6 {[%clk 0:11:40]} 9. O-O {[%clk 0:11:42.9]} 9... Nxc3 {[%clk
0:11:25.1]} 10. bxc3 {[%clk 0:11:44.2]} 10... c5 {[%clk 0:11:27.3]} 11. d5
{[%clk 0:11:43.9]} 11... a6 {[%clk 0:11:18.9]} 12. a4 {[%clk 0:11:43.1]} 12...
b6 {[%clk 0:11:15.1]} 13. Bg5 {[%clk 0:11:41.9]} 13... h6 {[%clk 0:11:12.3]} 14.
Bh4 {[%clk 0:11:42.5]} 14... g5 {[%clk 0:11:08.7]} 15. Bg3 {[%clk 0:11:43.8]}
15... Bb7 {[%clk 0:11:04.5]} 16. Qd2 {[%clk 0:11:36.8]} 16... Nd7 {[%clk
0:10:59.8]} 17. d6 {[%clk 0:11:02.7]} 17... Bxf3 {[%clk 0:10:54.1]} 18. Rxf3
{[%clk 0:10:53.1]} 18... Nxe5 {[%clk 0:10:47.4]} 19. Bxe5 {[%clk 0:10:53]} 19...
Bxe5 {[%clk 0:10:44.1]} 20. d7 {[%clk 0:10:54.6]} 20... Bd6 {[%clk 0:10:39.6]}
21. Qd5 {[%clk 0:10:45.8]} 21... Qxd7 {[%clk 0:10:00]} 22. Rxf7 {[%clk 0:10:20]}
22... e6 {[%clk 0:09:50.7]} 23. Rxd7 {[%clk 0:10:19.4]} 23... exd5 {[%clk
0:09:52.7]} 24. Bxd5+ {[%clk 0:10:20.4]} 24... Kh8 {[%clk 0:09:43.4]} 25. Bxa8
{[%clk 0:10:21.1]} 25... Be5 {[%clk 0:09:35]} 26. Rf1 {[%clk 0:10:18.2]} 26...
Rxa8 {[%clk 0:09:32.1]} 27. Rff7 {[%clk 0:10:18]} 27... Bxc3 {[%clk 0:09:31.2]}
28. g3 {[%clk 0:10:17]} 28... Bd4+ {[%clk 0:09:26.7]} 29. Kg2 {[%clk 0:10:11.2]}
29... Re8 {[%clk 0:09:26.6]} 30. Rh7+ {[%clk 0:10:12]} 30... Kg8 {[%clk
0:09:28.4]} 31. Rxh6 {[%clk 0:10:14.1]} 31... Re2+ {[%clk 0:09:29]} 32. Kh3
{[%clk 0:10:11.7]} 32... c4 {[%clk 0:09:25.5]} 33. Rxd4 {[%clk 0:10:12.2]} 33...
Rxc2 {[%clk 0:08:57.9]} 34. Rxb6 {[%clk 0:10:10.5]} 1-0

[Event "Sabato rapido!"]
[Site "Chess.com"]
[Date "2020.05.02"]
[Round "6"]
[White "pedrak"]
[Black "fisherpez"]
[Result "1-0"]
[WhiteElo "1657"]
[BlackElo "1558"]
[TimeControl "720+3"]
[EndTime "8:27:53 PDT"]
[Termination "pedrak ha vinto per scaccomatto"]

1. Nf3 {[%clk 0:12:02.9]} 1... e6 {[%clk 0:12:00.6]} 2. g3 {[%clk 0:12:04.3]}
2... Nf6 {[%clk 0:11:55.2]} 3. Bg2 {[%clk 0:12:05.8]} 3... Nc6 {[%clk
0:11:57.5]} 4. O-O {[%clk 0:12:07.2]} 4... Be7 {[%clk 0:11:56.1]} 5. d3 {[%clk
0:12:08.5]} 5... h5 {[%clk 0:11:56.7]} 6. h3 {[%clk 0:12:00.7]} 6... Nh7 {[%clk
0:11:56.8]} 7. e4 {[%clk 0:12:01.2]} 7... g6 {[%clk 0:11:54]} 8. Nc3 {[%clk
0:11:53.8]} 8... b6 {[%clk 0:11:54.1]} 9. Nh2 {[%clk 0:11:52.8]} 9... d6 {[%clk
0:11:50.7]} 10. f4 {[%clk 0:11:54]} 10... Bb7 {[%clk 0:11:46.4]} 11. Be3 {[%clk
0:11:49.9]} 11... Qd7 {[%clk 0:11:47.7]} 12. Nf3 {[%clk 0:11:50]} 12... a6
{[%clk 0:11:37.8]} 13. Ne2 {[%clk 0:11:47.3]} 13... O-O-O {[%clk 0:11:36.5]} 14.
c3 {[%clk 0:11:41.7]} 14... Nb8 {[%clk 0:11:33.7]} 15. Qc2 {[%clk 0:11:41.9]}
15... Rdg8 {[%clk 0:11:30.9]} 16. Qd2 {[%clk 0:11:15.2]} 16... Nf8 {[%clk
0:11:30.2]} 17. b4 {[%clk 0:11:08.1]} 17... d5 {[%clk 0:11:08]} 18. e5 {[%clk
0:10:46.2]} 18... Qd8 {[%clk 0:10:49.2]} 19. h4 {[%clk 0:10:38.9]} 19... Nfd7
{[%clk 0:10:50.4]} 20. Rfc1 {[%clk 0:10:27]} 20... f6 {[%clk 0:10:39.4]} 21.
exf6 {[%clk 0:10:14.5]} 21... Bxf6 {[%clk 0:10:35.1]} 22. Bd4 {[%clk 0:10:10.9]}
22... Nc6 {[%clk 0:10:18.6]} 23. Bxf6 {[%clk 0:10:09.3]} 23... Nxf6 {[%clk
0:10:19]} 24. Ng5 {[%clk 0:10:11.1]} 24... Qe7 {[%clk 0:10:10.1]} 25. Nd4 {[%clk
0:09:50.9]} 25... Nd8 {[%clk 0:10:07.3]} 26. Re1 {[%clk 0:09:48.5]} 26... Ng4
{[%clk 0:09:09]} 27. Ndxe6 {[%clk 0:09:37.6]} 27... Nxe6 {[%clk 0:09:07.9]} 28.
Rxe6 {[%clk 0:09:38.7]} 28... Qg7 {[%clk 0:09:09.7]} 29. Rae1 {[%clk 0:09:32.5]}
29... Kb8 {[%clk 0:09:06.7]} 30. R1e5 {[%clk 0:09:18.7]} 30... Qd7 {[%clk
0:09:01.6]} 31. Re7 {[%clk 0:09:10.6]} 31... Qa4 {[%clk 0:08:46.7]} 32. Bxd5
{[%clk 0:08:51.4]} 32... Bxd5 {[%clk 0:08:41.8]} 33. Rxd5 {[%clk 0:08:52.6]}
33... Qc6 {[%clk 0:08:40.1]} 34. c4 {[%clk 0:08:44.8]} 34... Nf6 {[%clk
0:08:31.8]} 35. Re6 {[%clk 0:08:44]} 35... Qb7 {[%clk 0:08:07.8]} 36. Rxf6
{[%clk 0:08:43.8]} 36... Re8 {[%clk 0:08:10.2]} 37. Re6 {[%clk 0:08:43.3]} 37...
Ref8 {[%clk 0:08:09.3]} 38. Qe2 {[%clk 0:08:41]} 38... Rc8 {[%clk 0:08:00.7]}
39. Qe4 {[%clk 0:08:34.2]} 39... Qa7 {[%clk 0:07:50.7]} 40. Qxg6 {[%clk
0:08:20.2]} 40... b5+ {[%clk 0:07:49.4]} 41. c5 {[%clk 0:08:21.8]} 41... Qb7
{[%clk 0:07:48.5]} 42. Qe4 {[%clk 0:08:15.8]} 42... c6 {[%clk 0:07:22.8]} 43.
Rdd6 {[%clk 0:08:09.9]} 43... Qg7 {[%clk 0:07:23.2]} 44. Qe5 {[%clk 0:08:05.7]}
44... Qxe5 {[%clk 0:07:15.3]} 45. Rxe5 {[%clk 0:08:05.5]} 45... Rc7 {[%clk
0:07:14.5]} 46. f5 {[%clk 0:08:06.1]} 46... Kc8 {[%clk 0:07:08.9]} 47. f6 {[%clk
0:08:07.4]} 47... Rf8 {[%clk 0:07:09.1]} 48. f7 {[%clk 0:08:08.8]} 48... Rcxf7
{[%clk 0:06:56.5]} 49. Nxf7 {[%clk 0:08:09]} 49... Rxf7 {[%clk 0:06:58.7]} 50.
Rxh5 {[%clk 0:08:10.3]} 50... Rg7 {[%clk 0:06:48]} 51. Rxc6+ {[%clk 0:08:11.3]}
51... Kd7 {[%clk 0:06:49.6]} 52. Rd6+ {[%clk 0:08:12]} 52... Ke7 {[%clk
0:06:50.9]} 53. Kg2 {[%clk 0:08:13.6]} 53... Rf7 {[%clk 0:06:20.8]} 54. Rxa6
{[%clk 0:08:14.2]} 54... Kd8 {[%clk 0:06:19.6]} 55. Rh8+ {[%clk 0:08:12.1]}
55... Ke7 {[%clk 0:06:19.6]} 56. Ra7+ {[%clk 0:08:10.6]} 56... Kf6 {[%clk
0:06:21.6]} 57. Rxf7+ {[%clk 0:08:03.4]} 57... Kxf7 {[%clk 0:06:23.5]} 58. Kf3
{[%clk 0:08:04.4]} 58... Ke6 {[%clk 0:06:25.5]} 59. Ke4 {[%clk 0:08:05.6]} 59...
Kf6 {[%clk 0:06:27.1]} 60. c6 {[%clk 0:08:06.7]} 60... Kg6 {[%clk 0:06:29.7]}
61. c7 {[%clk 0:08:08]} 61... Kg7 {[%clk 0:06:32.4]} 62. c8=Q {[%clk 0:08:08.6]}
62... Kf6 {[%clk 0:06:34.8]} 63. Qf5+ {[%clk 0:08:07.7]} 63... Ke7 {[%clk
0:06:36.3]} 64. Rh7+ {[%clk 0:08:07.4]} 64... Kd6 {[%clk 0:06:38.4]} 65. Qg6#
{[%clk 0:08:08.1]} 1-0